bitfinex/quotes_BTCUSD_20251007
["timestamp","ask_amount","ask_price","bid_price","bid_amount"]
[1759809534313,0.16347271,124290.0,124280.0,0.97025711]
[1759809534512,0.16647271,124290.0,124280.0,0.97125711]
[1759809534711,0.16971271,124290.0,124280.0,0.97125711]
[1759809535313,0.18371271,124290.0,124280.0,1.31425711]
[1759809538373,0.18504524,124290.0,124280.0,1.31425711]
[1759809539583,0.18504524,124290.0,124280.0,1.00413711]
[1759809539741,0.18504524,124290.0,124280.0,1.25658611]
[1759809539946,0.18504524,124290.0,124280.0,1.23244493]
[1759809540148,0.18504524,124290.0,124280.0,1.25658611]
[1759809540529,0.18504524,124290.0,124280.0,1.23244493]
[1759809546302,0.18504524,124290.0,124280.0,1.25658611]
[1759809546694,0.18504524,124290.0,124280.0,1.17298611]
[1759809546900,0.18504524,124290.0,124280.0,1.25658611]
[1759809549734,0.18504524,124290.0,124280.0,1.09565918]
[1759809549938,0.18504524,124290.0,124280.0,1.18914211]
[1759809550139,0.18504524,124290.0,124280.0,0.55642818]
[1759809550335,0.21725008,124290.0,124280.0,0.65408]
[1759809550553,0.18504524,124290.0,124280.0,0.65408]
[1759809554027,0.18504524,124290.0,124280.0,0.81500693]
[1759809554979,0.18504524,124290.0,124280.0,0.65408]
[1759809562519,0.18504524,124290.0,124280.0,0.81500693]
[1759809566364,0.18180524,124290.0,124280.0,0.81705693]
[1759809566573,0.02089125,124290.0,124280.0,0.81705693]
[1759809567208,0.02410125,124290.0,124280.0,0.81500693]
[1759809567383,0.18501524,124290.0,124280.0,0.81500693]
[1759809567769,0.01883125,124290.0,124280.0,0.81705693]
[1759809569021,0.02086125,124290.0,124280.0,0.81705693]
[1759809570834,0.02407125,124290.0,124280.0,0.81500693]
[1759809573352,0.18498524,124290.0,124280.0,0.81500693]
[1759809574211,0.18177524,124290.0,124280.0,0.81705693]
[1759809574404,0.02407125,124290.0,124280.0,0.81500693]
[1759809574770,0.18498524,124290.0,124280.0,0.50492693]
[1759809575221,0.18498524,124290.0,124280.0,0.344]
[1759809575373,0.18498524,124290.0,124280.0,0.57048]
[1759809575579,0.18498524,124290.0,124280.0,0.65408]
[1759809576174,0.18498524,124290.0,124280.0,0.81500693]
[1759809582708,0.18498524,124290.0,124280.0,0.6432674]
[1759809584411,0.18498524,124290.0,124280.0,0.47100693]
[1759809589069,0.18177524,124290.0,124280.0,0.47307693]
[1759809590177,0.18482524,124290.0,124280.0,0.47100693]
[1759809591148,0.18177524,124290.0,124280.0,0.47307693]
[1759809591691,0.18482524,124290.0,124280.0,0.47307693]
[1759809591891,0.02391125,124290.0,124280.0,0.47100693]
[1759809592185,0.02391125,124290.0,124280.0,0.47307693]
[1759809592447,0.02086125,124290.0,124280.0,0.47307693]
[1759809593859,0.02391125,124290.0,124280.0,0.47307693]
[1759809595046,0.02391125,124290.0,124280.0,0.47100693]
[1759809595229,0.02086125,124290.0,124280.0,0.47307693]
[1759809596651,0.02391125,124290.0,124280.0,0.47307693]
[1759809597010,0.01883125,124290.0,124280.0,0.98914093]
[1759809597157,0.01883125,124290.0,124280.0,1.35328104]
[1759809597339,0.01883125,124290.0,124280.0,1.4364031]
[1759809597939,0.01883125,124290.0,124280.0,1.1263231]
[1759809598179,0.01883125,124290.0,124280.0,1.04148104]
[1759809598358,0.01883125,124290.0,124280.0,1.68608104]
[1759809598539,0.01583125,124290.0,124280.0,1.68608104]
[1759809598777,0.00283125,124290.0,124280.0,1.68808104]
[1759809599187,0.01383125,124290.0,124280.0,1.69008104]
[1759809599334,0.01579125,124290.0,124280.0,1.27196104]
[1759809599541,0.01884125,124290.0,124280.0,1.09464004]
[1759809601517,0.01884125,124290.0,124280.0,0.73864404]
[1759809601722,0.17975524,124290.0,124280.0,0.11174011]
[1759809601895,0.17975524,124290.0,124280.0,0.004]
[1759809602095,0.29694333,124290.0,124280.0,0.81408]
[1759809602300,0.29694333,124290.0,124280.0,0.23048]
[1759809602500,0.29694333,124290.0,124280.0,0.004]
[1759809602501,0.2628773,124290.0,124280.0,0.004]
[1759809602722,0.2628773,124290.0,124280.0,0.01628]
[1759809602922,0.2518773,124290.0,124280.0,0.01428]
[1759809603265,0.27602214,124290.0,124280.0,0.01428]
[1759809603565,0.29302214,124290.0,124280.0,0.01728]
[1759809603788,0.35601894,124290.0,124280.0,0.01428]
[1759809603930,0.37601894,124290.0,124280.0,0.01528]
[1759809604152,0.37901894,124290.0,124280.0,0.01628]
[1759809604898,0.37601894,124290.0,124280.0,0.01528]
[1759809605110,0.44147028,124290.0,124280.0,0.01628]
[1759809608758,0.44100645,124290.0,124280.0,0.01628]
[1759809612157,0.38063651,124290.0,124280.0,0.01628]
[1759809612337,0.38259651,124290.0,124280.0,0.01628]
[1759809613097,0.35845167,124290.0,124280.0,0.01628]
[1759809613842,0.35828529,124290.0,124280.0,0.01628]
[1759809614052,0.36133529,124290.0,124280.0,0.01628]
[1759809615108,0.28133849,124290.0,124280.0,0.01628]
[1759809615515,0.28122324,124290.0,124280.0,0.01628]
[1759809616634,0.28115446,124290.0,124280.0,0.01628]
[1759809617253,0.28115446,124290.0,124280.0,0.004]
[1759809617463,0.78064596,124290.0,124280.0,0.004]
[1759809617621,0.86064276,124290.0,124280.0,0.004]
[1759809618967,0.86008597,124290.0,124280.0,0.004]
[1759809621174,0.36059447,124290.0,124280.0,0.004]
[1759809621400,0.86008597,124290.0,124280.0,0.004]
[1759809621922,0.36059447,124290.0,124280.0,0.004]
[1759809622484,0.36054893,124290.0,124280.0,0.004]
[1759809623351,0.36043368,124290.0,124280.0,0.004]
[1759809624539,0.35996985,124290.0,124280.0,0.004]
[1759809625489,0.85946135,124290.0,124280.0,0.004]
[1759809627665,0.8592299,124290.0,124280.0,0.004]
[1759809628946,0.85917507,124290.0,124280.0,0.004]
[1759809630146,0.86668475,124290.0,124280.0,0.004]
[1759809630571,0.86654626,124290.0,124280.0,0.004]
[1759809631965,0.89069525,124290.0,124280.0,0.004]
[1759809634020,0.8904638,124290.0,124280.0,0.004]
[1759809635017,0.89041826,124290.0,124280.0,0.004]
[1759809638129,1.11705826,124290.0,124280.0,0.004]
[1759809638353,1.13208622,124290.0,124280.0,0.004]
[1759809638558,0.40595472,124290.0,124280.0,0.004]
[1759809638761,1.13208622,124290.0,124280.0,0.004]
[1759809639184,0.82498559,124290.0,124280.0,0.004]
[1759809639387,1.05162559,124290.0,124280.0,0.004]
[1759809639972,1.05139414,124290.0,124280.0,0.004]
[1759809640342,1.05116269,124290.0,124280.0,0.004]
[1759809642078,1.05116844,124290.0,124280.0,0.004]
[1759809642522,1.13116524,124290.0,124280.0,0.004]
[1759809642951,0.90452524,124290.0,124280.0,0.004]
[1759809643156,1.13116524,124290.0,124280.0,0.004]
[1759809645347,1.13112524,124290.0,124280.0,0.004]
[1759809646106,0.40503374,124290.0,124280.0,0.004]
[1759809646367,1.13112524,124290.0,124280.0,0.004]
[1759809646576,0.28084999,124290.0,124280.0,0.00904]
[1759809647110,0.28291999,124290.0,124280.0,0.004]
[1759809647309,0.2858815,124290.0,124280.0,0.004]
[1759809648601,0.2827815,124290.0,124280.0,0.00599]
[1759809648825,0.2858815,124290.0,124280.0,0.004]
[1759809650343,0.2807115,124290.0,124280.0,0.00904]
[1759809650567,0.27985726,124290.0,124280.0,0.00904]
[1759809650789,0.28192726,124290.0,124280.0,0.004]
[1759809650988,0.28502726,124290.0,124280.0,0.004]
[1759809651333,0.28493524,124290.0,124280.0,0.004]
[1759809652950,0.36493204,124290.0,124280.0,0.004]
[1759809653351,0.28493524,124290.0,124280.0,0.004]
[1759809654429,0.28465732,124290.0,124280.0,0.004]
[1759809658469,0.28461178,124290.0,124280.0,0.004]
[1759809659455,0.28438033,124290.0,124280.0,0.004]
[1759809661003,0.2737649,124290.0,124280.0,0.00599]
[1759809661460,0.2768649,124290.0,124280.0,0.004]
[1759809662933,0.27677288,124290.0,124280.0,0.004]
[1759809667683,0.27444997,124290.0,124280.0,0.004]
[1759809670940,0.27419623,124290.0,124280.0,0.004]
[1759809673555,0.2737324,124290.0,124280.0,0.004]
[1759809673737,0.29787885,124290.0,124280.0,0.004]
[1759809676225,0.30535434,124290.0,124280.0,0.004]
[1759809676440,0.29783331,124290.0,124280.0,0.004]
[1759809676789,0.29713709,124290.0,124280.0,0.004]
[1759809678020,0.30466148,124290.0,124280.0,0.004]
[1759809678630,0.29713709,124290.0,124280.0,0.004]
[1759809679254,0.30466161,124290.0,124280.0,0.004]
[1759809680305,0.30466181,124290.0,124280.0,0.004]
[1759809680895,0.3512185,124290.0,124280.0,0.004]
[1759809681870,0.35116296,124290.0,124280.0,0.004]
[1759809684549,0.35069913,124290.0,124280.0,0.004]
[1759809685175,0.57733913,124290.0,124280.0,0.004]
[1759809685783,0.57733843,124290.0,124280.0,0.004]
[1759809687386,0.57733552,124290.0,124280.0,0.004]
[1759809694489,0.57729552,124290.0,124280.0,0.004]
[1759809695019,0.16093988,124270.0,124250.0,0.08364]
[1759809695193,0.00204,124260.0,124250.0,0.24460545]
[1759809695616,0.00204,124260.0,124250.0,0.24656545]
[1759809695907,0.00204,124260.0,124250.0,0.27071442]
[1759809696125,0.00204,124260.0,124250.0,0.49731442]
[1759809696327,0.00204,124260.0,124250.0,0.50031442]
[1759809696568,0.00204,124260.0,124250.0,0.49731442]
[1759809696762,0.00204,124260.0,124250.0,0.5053627]
[1759809696990,0.00804,124260.0,124250.0,0.5093627]
[1759809697400,0.006,124260.0,124250.0,0.5115427]
[1759809697833,0.008,124260.0,124250.0,0.5125427]
[1759809698391,0.008,124260.0,124250.0,0.5093627]
[1759809698796,0.00998,124260.0,124250.0,0.5093627]
[1759809699000,0.17093284,124260.0,124250.0,0.5074027]
[1759809699183,0.17411284,124260.0,124250.0,0.49935476]
[1759809699385,0.17411284,124260.0,124250.0,0.18911476]
[1759809699584,0.17411284,124260.0,124250.0,0.49935476]
[1759809700631,0.17411284,124260.0,124250.0,0.33838897]
[1759809700830,0.17411284,124260.0,124250.0,0.02928271]
[1759809701054,0.17411284,124260.0,124250.0,0.31537374]
[1759809701642,0.17097489,124260.0,124250.0,0.31537374]
[1759809704207,0.25409695,124260.0,124250.0,0.00513374]
[1759809704602,0.27824841,124260.0,124250.0,0.16581374]
[1759809705214,0.27824841,124260.0,124250.0,0.00513374]
[1759809705610,0.27624841,124260.0,124250.0,0.00413374]
[1759809705816,0.32139876,124260.0,124250.0,0.00413374]
[1759809706036,0.32353671,124260.0,124250.0,0.00213374]
[1759809706447,0.32853671,124260.0,124250.0,0.00413374]
[1759809706707,0.31853671,124260.0,124250.0,0.00113374]
[1759809706915,0.32453671,124260.0,124250.0,0.00113374]
[1759809707110,0.33653671,124260.0,124250.0,0.00413374]
[1759809721375,0.84398875,124260.0,124250.0,0.00413374]
[1759809721583,0.57068327,124260.0,124250.0,0.00413374]
[1759809722151,1.41062875,124260.0,124250.0,0.00413374]
[1759809723872,1.42563981,124260.0,124250.0,0.00413374]
[1759809724092,1.42567884,124260.0,124250.0,0.00413374]
[1759809725878,0.69905336,124260.0,124250.0,0.00413374]
[1759809726114,1.42567884,124260.0,124250.0,0.00413374]
[1759809726367,1.44297375,124260.0,124250.0,0.00413374]
[1759809727670,1.21629375,124260.0,124250.0,0.00413374]
[1759809727882,1.44297375,124260.0,124250.0,0.00413374]
[1759809730795,1.21629375,124260.0,124250.0,0.00413374]
[1759809731181,0.67119792,124260.0,124250.0,0.00413374]
[1759809731366,0.89271792,124260.0,124250.0,0.00609374]
[1759809731585,0.89271792,124260.0,124250.0,0.00924374]
[1759809731994,0.89271792,124260.0,124250.0,0.00609374]
[1759809732205,0.97798472,124260.0,124250.0,0.00413374]
[1759809733007,0.75130472,124260.0,124250.0,0.00413374]
[1759809735320,1.2512502,124260.0,124250.0,0.00413374]
[1759809736061,0.75130472,124260.0,124250.0,0.00413374]
[1759809739822,0.72878807,124260.0,124250.0,0.00413374]
[1759809740277,0.96303046,124260.0,124250.0,0.00413374]
[1759809740596,0.97055436,124260.0,124250.0,0.00413374]
[1759809740801,0.95550807,124260.0,124250.0,0.00413374]
[1759809741004,0.9780775,124260.0,124250.0,0.00413374]
[1759809741142,0.96303121,124260.0,124250.0,0.00413374]
[1759809741539,0.95550807,124260.0,124250.0,0.00413374]
[1759809741779,0.97807806,124260.0,124250.0,0.00413374]
[1759809744401,1.47802354,124260.0,124250.0,0.00413374]
[1759809744608,0.97807806,124260.0,124250.0,0.00413374]
[1759809744833,0.97483806,124260.0,124250.0,0.00627374]
[1759809745018,0.97804806,124260.0,124250.0,0.00413374]
[1759809746980,0.97804726,124260.0,124250.0,0.00413374]
[1759809751608,1.47799274,124260.0,124250.0,0.00413374]
[1759809751836,1.97793822,124260.0,124250.0,0.00413374]
[1759809753510,0.16097875,124240.0,124230.0,0.01]
[1759809753781,0.28381891,124240.0,124230.0,0.01]
[1759809753985,0.3040627,124240.0,124230.0,0.01]
[1759809754169,0.32822148,124240.0,124230.0,0.01]
[1759809754376,0.3725729,124240.0,124230.0,0.01]
[1759809754691,0.3725729,124240.0,124230.0,0.01049872]
[1759809754906,0.3755729,124240.0,124230.0,0.01049872]
[1759809755768,0.6052929,124240.0,124230.0,0.01049872]
[1759809756202,0.60528764,124240.0,124230.0,0.01049872]
[1759809756420,0.59928764,124240.0,124230.0,0.01049872]
[1759809756827,0.60728764,124240.0,124230.0,0.01049872]
[1759809757876,0.38556764,124240.0,124230.0,0.01049872]
[1759809758019,0.61228764,124240.0,124230.0,0.01049872]
[1759809759233,0.61228764,124240.0,124230.0,0.01089675]
[1759809763411,0.60477037,124240.0,124230.0,0.01089675]
[1759809763862,0.37805037,124240.0,124230.0,0.01089675]
[1759809764284,0.60473037,124240.0,124230.0,0.01089675]
[1759809768198,0.61224649,124240.0,124230.0,0.01089675]
[1759809769520,0.60424649,124240.0,124230.0,0.01089675]
[1759809769717,0.59924649,124240.0,124230.0,0.01089675]
[1759809769919,0.60524649,124240.0,124230.0,0.01089675]
[1759809770165,0.61224649,124240.0,124230.0,0.01089675]
[1759809773070,0.38556649,124240.0,124230.0,0.01089675]
[1759809773284,0.61224649,124240.0,124230.0,0.01089675]
[1759809774407,0.38556649,124240.0,124230.0,0.01089675]
[1759809774647,0.61224649,124240.0,124230.0,0.01089675]
[1759809775643,0.38556649,124240.0,124230.0,0.01089675]
[1759809775835,0.61224649,124240.0,124230.0,0.01089675]
[1759809776879,0.61224959,124240.0,124230.0,0.01089675]
[1759809779136,0.38556959,124240.0,124230.0,0.01089675]
[1759809779546,0.58005402,124240.0,124230.0,0.01089675]
[1759809782976,0.61245273,124240.0,124230.0,0.01089675]
[1759809783615,1.1125556,124240.0,124230.0,0.01089675]
[1759809784266,1.1125602,124240.0,124230.0,0.01089675]
[1759809784650,0.60645733,124240.0,124230.0,0.01089675]
[1759809784864,0.67945413,124240.0,124230.0,0.01089675]
[1759809784997,1.13125413,124240.0,124230.0,0.01089675]
[1759809785199,1.13925413,124240.0,124230.0,0.01089675]
[1759809789988,0.91257413,124240.0,124230.0,0.01089675]
[1759809790197,1.13933413,124240.0,124230.0,0.01089675]
[1759809792260,1.47933413,124240.0,124230.0,0.01089675]
[1759809792695,1.47934243,124240.0,124230.0,0.01089675]
[1759809794477,1.47930243,124240.0,124230.0,0.01089675]
[1759809796757,1.25258243,124240.0,124230.0,0.01089675]
[1759809796964,1.47934243,124240.0,124230.0,0.01089675]
[1759809797225,1.47933785,124240.0,124230.0,0.01089675]
[1759809798369,1.25257785,124240.0,124230.0,0.01089675]
[1759809798587,1.47933785,124240.0,124230.0,0.01089675]
[1759809799541,1.25257785,124240.0,124230.0,0.01089675]
[1759809799742,1.47933785,124240.0,124230.0,0.01089675]
[1759809806806,1.47934005,124240.0,124230.0,0.01089675]
[1759809814376,1.97944292,124240.0,124230.0,0.01089675]
[1759809817213,1.47934005,124240.0,124230.0,0.01089675]
[1759809820079,1.97944292,124240.0,124230.0,0.01089675]
[1759809820625,1.97944714,124240.0,124230.0,0.01089675]
[1759809824729,2.06409714,124240.0,124230.0,0.01089675]
[1759809824929,1.97944714,124240.0,124230.0,0.01089675]
[1759809828533,1.47934427,124240.0,124230.0,0.01089675]
[1759809829911,1.16738747,124240.0,124230.0,0.01291675]
[1759809830106,1.16738747,124240.0,124230.0,0.01597675]
[1759809830334,1.39406747,124240.0,124230.0,0.01291675]
[1759809830528,1.39606747,124240.0,124230.0,0.01291675]
[1759809830756,1.39927747,124240.0,124230.0,0.01089675]
[1759809830967,1.47927427,124240.0,124230.0,0.01089675]
[1759809831471,1.97937714,124240.0,124230.0,0.01089675]
[1759809832872,0.16103059,124200.0,124190.0,0.08674]
[1759809833057,0.16104356,124190.0,124180.0,0.005]
[1759809833257,0.24416562,124190.0,124180.0,0.00504987]
[1759809833499,0.27033107,124190.0,124180.0,0.00504987]
[1759809834009,0.27354107,124190.0,124180.0,0.00504987]
[1759809834276,0.27754107,124190.0,124180.0,0.00504987]
[1759809834655,0.27233107,124190.0,124180.0,0.01012987]
[1759809834853,0.27533107,124190.0,124180.0,0.01012987]
[1759809835087,0.27533107,124190.0,124180.0,0.1711864]
[1759809835207,0.27533107,124190.0,124180.0,0.01012987]
[1759809840285,0.19220901,124190.0,124180.0,0.01012987]
[1759809840532,0.007,124190.0,124180.0,0.17218195]
[1759809842219,0.007,124190.0,124180.0,0.19634361]
[1759809842841,0.007,124190.0,124180.0,0.53634361]
[1759809843263,0.007,124190.0,124180.0,0.32822622]
[1759809843565,0.007,124190.0,124180.0,0.48928275]
[1759809845729,0.007,124190.0,124180.0,0.49428275]
[1759809846536,0.007,124190.0,124180.0,0.51844345]
[1759809847467,0.007,124190.0,124180.0,0.19021723]
[1759809849713,0.007,124190.0,124180.0,0.19010318]
[1759809853875,0.007,124190.0,124180.0,0.16594248]
[1759809854308,0.007,124190.0,124180.0,0.47642248]
[1759809854621,0.009,124190.0,124180.0,0.47642248]
[1759809854991,0.007,124190.0,124180.0,0.47642248]
[1759809855195,0.007,124190.0,124180.0,0.47646248]
[1759809855629,0.17343356,124190.0,124180.0,0.47657653]
[1759809855908,0.25655562,124190.0,124180.0,0.31552]
[1759809860246,0.25116562,124190.0,124180.0,0.31552]
[1759809860447,0.25116562,124190.0,124180.0,0.005]
[1759809860818,0.25116562,124190.0,124180.0,0.31556]
[1759809861549,0.25655562,124190.0,124180.0,0.005]
[1759809861753,0.25655562,124190.0,124180.0,0.24044]
[1759809861958,0.25331562,124190.0,124180.0,0.24044]
[1759809862167,0.25116562,124190.0,124180.0,0.24044]
[1759809864187,0.25116562,124190.0,124180.0,0.40149653]
[1759809865671,0.25116562,124190.0,124180.0,0.24044]
[1759809866372,0.007,124190.0,124180.0,0.40149653]
[1759809867740,0.007,124190.0,124180.0,1.55255453]
[1759809868347,0.007,124190.0,124180.0,1.57671309]
[1759809868545,0.004,124190.0,124180.0,1.57671309]
[1759809868774,0.004,124190.0,124180.0,1.65983515]
[1759809868977,0.001,124190.0,124180.0,1.65983515]
[1759809870503,0.005,124190.0,124180.0,1.65983515]
[1759809872258,0.005,124190.0,124180.0,1.99983515]
[1759809876655,0.005,124190.0,124180.0,2.32611515]
[1759809876875,0.005,124190.0,124180.0,2.40979515]
[1759809877776,0.005,124190.0,124180.0,2.37928817]
[1759809881042,0.005,124190.0,124180.0,1.73388817]
[1759809881212,0.005,124190.0,124180.0,2.37920817]
[1759809886305,0.005,124190.0,124180.0,2.37916817]
[1759809888319,0.005,124190.0,124180.0,1.73388817]
[1759809888524,0.005,124190.0,124180.0,2.37916817]
[1759809898755,0.06536749,124230.0,124220.0,0.16100466]
[1759809898969,0.06536749,124230.0,124220.0,1.07722366]
[1759809899408,0.06670089,124230.0,124220.0,1.07722366]
[1759809899609,0.0013334,124230.0,124220.0,1.07722366]
[1759809899998,0.0083334,124230.0,124220.0,1.08022366]
[1759809900533,0.0083334,124230.0,124220.0,1.16334572]
[1759809900988,0.0083334,124230.0,124220.0,1.18749479]
[1759809901209,0.00838322,124230.0,124220.0,1.18749479]
[1759809901424,0.00838322,124230.0,124220.0,1.52749479]
[1759809901872,0.01038322,124230.0,124220.0,1.52849479]
[1759809902064,0.01038322,124230.0,124220.0,1.28207436]
[1759809902484,0.01038322,124230.0,124220.0,1.61671436]
[1759809903056,0.01038322,124230.0,124220.0,1.84359436]
[1759809905890,0.01038322,124230.0,124220.0,1.19839436]
[1759809906036,0.01038322,124230.0,124220.0,1.84355436]
[1759809906440,0.01038322,124230.0,124220.0,1.75991436]
[1759809906677,0.01038322,124230.0,124220.0,1.84355436]
[1759809907877,0.01253322,124230.0,124220.0,1.19839436]
[1759809908081,0.01572322,124230.0,124220.0,1.84355436]
[1759809908282,0.01572322,124230.0,124220.0,1.19839436]
[1759809908493,0.01572322,124230.0,124220.0,1.10536973]
[1759809908694,0.01572322,124230.0,124220.0,1.33224973]
[1759809909101,0.01253322,124230.0,124220.0,1.33224973]
[1759809909301,0.01038322,124230.0,124220.0,1.24860973]
[1759809909536,0.01038322,124230.0,124220.0,1.33224973]
[1759809910203,0.01038322,124230.0,124220.0,1.02172973]
[1759809910408,0.01038322,124230.0,124220.0,1.33224973]
[1759809910801,0.01572322,124230.0,124220.0,0.85046273]
[1759809911007,0.01572322,124230.0,124220.0,1.13683366]
[1759809911894,0.01253322,124230.0,124220.0,1.13683366]
[1759809912019,0.01038322,124230.0,124220.0,1.13683366]
[1759809913201,0.01253322,124230.0,124220.0,0.82631366]
[1759809913377,0.01572322,124230.0,124220.0,1.13683366]
[1759809913602,0.01572322,124230.0,124220.0,1.11538966]
[1759809914016,0.01572322,124230.0,124220.0,0.74898766]
[1759809914346,0.01572322,124230.0,124220.0,0.52210766]
[1759809914551,0.01572322,124230.0,124220.0,0.74898766]
[1759809915341,0.01038322,124230.0,124220.0,0.74898766]
[1759809918436,0.01547322,124230.0,124220.0,0.74898766]
[1759809919966,0.01038322,124230.0,124220.0,0.74898766]
[1759809920613,0.01038322,124230.0,124220.0,0.74894766]
[1759809922365,0.01038322,124230.0,124220.0,0.73237066]
[1759809923348,0.01547322,124230.0,124220.0,0.73237066]
[1759809923898,0.01038322,124230.0,124220.0,0.73237066]
[1759809930783,0.01038322,124230.0,124220.0,1.07237066]
[1759809931187,0.01038322,124230.0,124220.0,1.15549272]
[1759809935541,0.01038322,124230.0,124220.0,1.17964169]
[1759809948452,0.01038322,124230.0,124220.0,1.51424169]
[1759809948870,0.01560322,124230.0,124220.0,1.28744169]
[1759809949036,0.01560322,124230.0,124220.0,1.09596169]
[1759809949241,0.01560322,124230.0,124220.0,1.51424169]
[1759809949635,0.01038322,124230.0,124220.0,1.51424169]
[1759809950086,0.01560322,124230.0,124220.0,0.16500466]
[1759809950309,0.25971698,124230.0,124220.0,0.08439]
[1759809950508,0.25971698,124230.0,124220.0,0.31143]
[1759809951486,0.25971698,124230.0,124220.0,0.22779]
[1759809957383,0.25971698,124230.0,124220.0,0.00075]
[1759809957618,0.16105653,124180.0,124170.0,0.00019916]
[1759809957859,0.16105554,124190.0,124180.0,0.5]
[1759809958090,0.16105653,124180.0,124170.0,0.34019916]
[1759809958313,0.16627653,124180.0,124170.0,0.08383916]
[1759809958547,0.16627653,124180.0,124170.0,0.81111916]
[1759809958787,0.16632632,124180.0,124170.0,0.31111916]
[1759809959449,0.16632632,124180.0,124170.0,0.00019916]
[1759809959672,0.16632632,124180.0,124170.0,0.22751916]
[1759809959890,0.17332632,124180.0,124170.0,0.23051916]
[1759809963445,0.25644838,124180.0,124170.0,0.23051916]
[1759809965700,0.25644838,124180.0,124170.0,0.00319916]
[1759809965701,0.30438946,124180.0,124170.0,0.00319916]
[1759809965880,0.30438946,124180.0,124170.0,0.23067916]
[1759809966072,0.30761206,124180.0,124170.0,0.00319916]
[1759809966654,0.30061206,124180.0,124170.0,0.00019916]
[1759809966811,0.30761206,124180.0,124170.0,0.22771916]
[1759809967022,0.31861206,124180.0,124170.0,0.22971916]
[1759809971160,0.26744838,124180.0,124170.0,0.22971916]
[1759809971360,0.26421838,124180.0,124170.0,0.23177916]
[1759809971983,0.26421838,124180.0,124170.0,0.22971916]
[1759809972186,0.26744838,124180.0,124170.0,0.22971916]
[1759809975398,0.28982193,124180.0,124170.0,0.22971916]
[1759809975587,0.28460193,124180.0,124170.0,0.39279866]
[1759809975865,0.26968592,124180.0,124170.0,0.23418916]
[1759809976077,0.26222838,124180.0,124170.0,0.23172916]
[1759809976471,0.26968924,124180.0,124170.0,0.23172916]
[1759809976683,0.26968924,124180.0,124170.0,0.39279866]
[1759809977336,0.26968924,124180.0,124170.0,0.23172916]
[1759809977549,0.27183353,124180.0,124170.0,0.23172916]
[1759809978476,0.27183353,124180.0,124170.0,0.22971916]
[1759809978684,0.27484353,124180.0,124170.0,0.22971916]
[1759809978901,0.27183353,124180.0,124170.0,0.23172916]
[1759809979106,0.26969353,124180.0,124170.0,0.39279866]
[1759809979348,0.28463955,124180.0,124170.0,0.39279866]
[1759809980417,0.28978955,124180.0,124170.0,0.00219916]
[1759809980626,0.34257253,124180.0,124170.0,0.31339916]
[1759809980831,0.28978955,124180.0,124170.0,0.31339916]
[1759809982290,0.30703904,124180.0,124170.0,0.31339916]
[1759809984525,0.29957389,124180.0,124170.0,0.31339916]
[1759809984944,0.30708061,124180.0,124170.0,0.31339916]
[1759809985381,0.05775202,124180.0,124170.0,0.47893866]
[1759809985641,0.04277033,124180.0,124170.0,1.89609266]
[1759809985846,0.02554063,124180.0,124170.0,1.89609266]
[1759809986262,0.01854063,124180.0,124170.0,1.89609266]
[1759809986473,0.01854063,124180.0,124170.0,1.89409266]
[1759809986474,4.979e-05,124180.0,124170.0,1.89409266]
[1759809986674,0.00704979,124180.0,124170.0,1.89409266]
[1759809987118,4.979e-05,124180.0,124170.0,1.89409266]
[1759809987329,0.00604979,124180.0,124170.0,1.89409266]
[1759809988207,0.00604979,124180.0,124170.0,1.58289266]
[1759809988452,0.00604979,124180.0,124170.0,1.89405266]
[1759809989524,0.00604979,124180.0,124170.0,1.44861266]
[1759809992766,0.00604979,124180.0,124170.0,0.80261266]
[1759809992992,0.00604979,124180.0,124170.0,1.44853266]
[1759809996358,0.00604979,124180.0,124170.0,0.97744066]
[1759809996557,0.00604979,124180.0,124170.0,0.73067866]
[1759809996759,0.00818979,124180.0,124170.0,0.97979166]
[1759809997037,0.00604979,124180.0,124170.0,0.97979166]
[1759809997749,0.00604979,124180.0,124170.0,0.81431866]
[1759809997918,0.01123979,124180.0,124170.0,0.81230866]
[1759809998064,0.00818979,124180.0,124170.0,0.93501766]
[1759809999161,0.00818979,124180.0,124170.0,0.50341866]
[1759809999286,0.01123979,124180.0,124170.0,0.81230866]
[1759809999487,0.00818979,124180.0,124170.0,0.94760066]
[1759809999697,0.00604979,124180.0,124170.0,0.95006066]
[1759810000749,0.00604979,124180.0,124170.0,1.03318272]
[1759810002939,0.00604979,124180.0,124170.0,1.36802272]
[1759810003616,0.00604979,124180.0,124170.0,0.72214272]
[1759810003818,0.00604979,124180.0,124170.0,1.36802272]
[1759810005937,0.00604979,124180.0,124170.0,1.36798272]
[1759810006782,0.00604979,124180.0,124170.0,1.28240066]
[1759810009146,0.00604979,124180.0,124170.0,0.63656066]
[1759810009383,0.00818979,124180.0,124170.0,1.28025066]
[1759810009580,0.01142979,124180.0,124170.0,1.28025066]
[1759810010173,0.00818979,124180.0,124170.0,1.28233066]
[1759810011440,0.01142979,124180.0,124170.0,0.63441066]
[1759810011619,0.01142979,124180.0,124170.0,1.28029066]
[1759810013923,0.01142979,124180.0,124170.0,0.63441066]
[1759810014139,0.01142979,124180.0,124170.0,0.50126866]
[1759810014349,0.01142979,124180.0,124170.0,0.81234866]
[1759810015578,0.01142979,124180.0,124170.0,0.81242866]
[1759810016594,0.00742979,124180.0,124170.0,0.81242866]
[1759810016821,0.00942979,124180.0,124170.0,0.81442866]
[1759810017279,0.01342979,124180.0,124170.0,0.81542866]
[1759810022193,0.00804979,124180.0,124170.0,0.81750866]
[1759810022632,0.01018979,124180.0,124170.0,0.81750866]
[1759810023035,0.00804979,124180.0,124170.0,0.81996866]
[1759810023880,0.00804979,124180.0,124170.0,0.81750866]
[1759810024529,0.01018979,124180.0,124170.0,0.81542866]
[1759810024740,0.01342979,124180.0,124170.0,0.81542866]
[1759810030101,0.01342979,124180.0,124170.0,0.47542866]
[1759810032942,0.01342979,124180.0,124170.0,0.16426866]
[1759810033156,0.01342979,124180.0,124170.0,0.47534866]
[1759810033367,0.17448632,124180.0,124170.0,0.47534866]
[1759810034647,0.17448632,124180.0,124170.0,0.31427916]
[1759810035707,0.17448632,124180.0,124170.0,0.23059916]
[1759810035909,0.17448632,124180.0,124170.0,0.31427916]
[1759810037752,0.17448632,124180.0,124170.0,0.47534866]
[1759810040757,0.17448632,124180.0,124170.0,0.31427916]
[1759810041422,0.17448632,124180.0,124170.0,0.23055916]
[1759810041578,0.17448632,124180.0,124170.0,0.31423916]
[1759810044035,0.25760838,124180.0,124170.0,0.00319916]
[1759810044241,0.25760838,124180.0,124170.0,0.08687916]
[1759810044458,0.25760838,124180.0,124170.0,0.23035916]
[1759810044904,0.25760838,124180.0,124170.0,0.00319916]
[1759810045168,0.25760838,124180.0,124170.0,0.31419916]
[1759810047064,0.30565781,124180.0,124170.0,0.31419916]